bitfinex-derivatives/quotes_ETHF0:USTF0_20250115
["timestamp","ask_amount","ask_price","bid_price","bid_amount"]
[1736967467204,0.59257,3375.0,3374.8,0.59259]
[1736967467403,3.2078,3375.4,3374.8,0.59259]
[1736967467603,0.59259,3374.8,3374.7,0.4559]
[1736967467809,0.5925,3375.3,3374.8,0.59258]
[1736967468007,3.2078,3375.4,3374.7,0.4559]
[1736967468208,3.2078,3375.4,3374.9,0.59256]
[1736967468411,0.59256,3375.0,3374.8,0.59258]
[1736967468618,0.59257,3374.9,3374.7,0.4559]
[1736967469010,3.2078,3375.4,3374.7,0.4559]
[1736967469011,0.59257,3375.0,3374.7,0.4559]
[1736967469509,3.2078,3375.4,3375.1,0.59253]
[1736967469708,0.59252,3375.2,3375.1,0.59253]
[1736967470011,0.59254,3375.1,3375.0,3.80035]
[1736967470410,0.59253,3375.2,3375.1,0.59253]
[1736967470610,0.59254,3375.1,3375.0,3.2078]
[1736967472309,0.4463,3375.5,3375.0,3.2078]
[1736967472808,0.59253,3375.2,3375.1,0.59253]
[1736967473711,0.4463,3375.5,3375.0,3.2078]
[1736967473913,0.59254,3375.1,3375.0,3.80035]
[1736967474211,0.4463,3375.5,3375.0,3.2078]
[1736967474412,0.59254,3375.1,3375.0,3.80035]
[1736967474613,0.471,3375.6,3375.5,0.59247]
[1736967474814,0.4574,3376.3,3375.5,1.21]
[1736967475015,0.4574,3376.3,3375.8,5.43439822]
[1736967475214,0.5924,3375.9,3375.8,5.43439822]
[1736967475419,0.5924,3375.9,3375.8,3.2078]
[1736967476016,0.5924,3375.9,3375.8,3.80022]
[1736967476719,0.59239,3376.0,3375.9,0.59239]
[1736967478119,0.4574,3376.3,3375.8,5.43439822]
[1736967478318,0.5924,3375.9,3375.8,5.43439822]
[1736967478819,0.5924,3375.9,3375.8,6.02681822]
[1736967480319,0.5924,3376.0,3375.9,0.59238]
[1736967480513,0.5924,3375.9,3375.8,6.02680822]
[1736967481212,0.5924,3376.0,3375.9,0.59239]
[1736967481518,0.5924,3375.9,3375.8,5.43439822]
[1736967481919,0.5924,3375.9,3375.8,6.02681822]
[1736967482312,0.4574,3376.3,3375.8,5.43439822]
[1736967482516,0.59239,3376.0,3375.9,0.59238]
[1736967483619,0.4574,3376.3,3375.8,5.43439822]
[1736967483811,0.5924,3375.9,3375.8,5.43439822]
[1736967484218,3.6652,3376.3,3375.4,3.2078]
[1736967484525,0.9241,3375.8,3375.0,3.2078]
[1736967484719,0.59254,3375.1,3375.0,3.2078]
[1736967484918,1.48109,3375.7,3375.0,3.2078]
[1736967484919,0.59253,3375.2,3375.1,0.59251]
[1736967486023,0.4455,3375.6,3375.0,5.43439822]
[1736967486224,0.59254,3375.2,3375.1,0.59253]
[1736967487932,0.59254,3375.1,3375.0,6.64439822]
[1736967488229,0.59254,3375.1,3375.0,7.23695822]
[1736967488929,0.59254,3375.1,3375.0,6.64439822]
[1736967489229,0.59254,3375.1,3375.0,7.23695822]
[1736967489530,0.59254,3375.1,3375.0,6.64439822]
[1736967490925,0.59254,3375.1,3375.0,7.23695822]
[1736967491626,0.59254,3375.1,3375.0,48.03695822]
[1736967492529,0.4804,3375.7,3375.0,46.23439822]
[1736967492726,0.59254,3375.2,3375.1,1.80254]
[1736967493032,1.96152,3375.7,3375.6,0.59245]
[1736967493033,1.07284,3375.7,3375.6,0.59245]
[1736967493229,0.4854,3375.8,3375.7,0.59243]
[1736967493532,0.4854,3375.8,3375.6,3.2078]
[1736967493726,0.59243,3375.7,3375.6,3.2078]
[1736967493928,0.4854,3375.8,3375.6,3.2078]
[1736967494229,1.07783,3375.8,3375.7,0.59243]
[1736967494434,0.59243,3375.7,3375.6,3.2078]
[1736967497135,0.59249,3375.4,3375.3,2.22659822]
[1736967497737,0.5925,3375.3,3375.2,4.4128]
[1736967497939,1.0747,3375.3,3375.2,5.00532]
[1736967498936,1.0747,3375.3,3375.2,3.80032]
[1736967500641,0.4854,3375.8,3375.2,3.80032]
[1736967500941,0.59242,3375.8,3375.7,2.81902822]
[1736967501337,0.4482,3375.9,3375.7,2.22659822]
[1736967501542,1.04061,3375.9,3375.8,0.59242]
[1736967503946,1.04061,3375.9,3375.7,3.2078]
[1736967504147,0.59249,3375.4,3375.3,3.2078]
[1736967512859,1.07328,3375.5,3375.4,0.59249]
[1736967513155,0.59249,3375.4,3375.3,3.8003]
[1736967513356,0.59249,3375.4,3375.3,3.2078]
[1736967514944,0.59265,3374.5,3374.4,3.2078]
[1736967518562,0.59264,3374.6,3374.5,0.59263]
[1736967518751,1.438,3374.7,3374.5,2.81922822]
[1736967519056,2.03062,3374.7,3374.6,0.59263]
[1736967519358,0.59261,3374.8,3374.7,0.59259]
[1736967520354,0.59261,3374.7,3374.6,0.59262]
[1736967520956,0.59261,3374.7,3374.6,41.39262]
[1736967521763,0.59261,3374.7,3374.6,0.59262]
[1736967527357,1.48138,3375.1,3374.5,2.22659822]
[1736967527665,0.59261,3374.8,3374.7,0.59259]
[1736967527960,0.59261,3374.8,3374.7,2.81918822]
[1736967530256,0.59261,3374.8,3374.7,2.22659822]
[1736967530558,0.59261,3374.7,3374.6,0.59262]
[1736967533667,0.5925,3375.4,3375.3,0.59249]
[1736967533871,0.5925,3375.4,3375.3,6.02688822]
[1736967534078,0.5925,3375.4,3375.3,6.02689822]
[1736967534770,0.5925,3375.4,3375.3,3.2078]
[1736967535072,0.59256,3375.0,3374.9,45.2118]
[1736967535273,3.2078,3375.8,3374.8,0.59258]
[1736967535274,1.93938,3375.3,3374.8,0.59258]
[1736967535472,1.53867,3374.9,3374.8,0.59258]
[1736967536070,0.5926,3374.8,3374.7,0.5926]
[1736967536769,0.59263,3374.6,3374.5,3.2078]
[1736967542179,0.9461,3374.9,3374.3,0.59267]
[1736967542385,0.5927,3374.3,3374.2,0.59268]
[1736967543670,0.59267,3374.5,3374.4,0.59265]
[1736967543879,0.59269,3374.4,3374.3,0.59267]
[1736967546380,0.59265,3374.5,3374.4,0.59265]
[1736967547783,1.03543,3374.6,3374.5,0.59265]
[1736967547978,0.59261,3374.8,3374.7,0.59259]
[1736967548181,0.59261,3374.8,3374.7,41.39259]
[1736967548879,0.9461,3374.9,3374.6,2.68069822]
[1736967549181,0.59261,3374.7,3374.6,3.27331822]
[1736967549380,0.9461,3374.9,3374.5,44.60043]
[1736967549685,0.59263,3374.6,3374.5,3.2078]
[1736967553587,0.5927,3374.2,3374.1,3.8005]
[1736967553782,0.5927,3374.2,3374.1,3.2078]
[1736967554183,0.5927,3374.2,3374.1,3.80052]
[1736967555281,3.2078,3374.2,3373.5,0.4782]
[1736967555578,0.59284,3373.4,3373.3,3.80065]
[1736967555881,0.59284,3373.4,3373.3,3.2078]
[1736967556385,0.59284,3373.4,3373.3,3.80066]
[1736967558496,0.59284,3373.4,3373.3,3.2078]
[1736967558890,0.59284,3373.4,3373.3,3.80066]
[1736967559190,0.59284,3373.4,3373.3,3.2078]
[1736967560795,0.4417,3373.8,3373.7,0.59279]
[1736967560989,0.59274,3374.0,3373.9,0.59273]
[1736967561189,1.54492,3374.1,3374.0,0.59273]
[1736967561393,1.54492,3374.1,3374.0,41.39273]
[1736967561693,1.04356,3374.5,3374.4,0.59266]
[1736967561892,0.59269,3374.3,3374.2,0.59268]
[1736967562293,0.59269,3374.3,3374.2,3.80048]
[1736967562691,0.59275,3373.9,3373.8,3.2078]
[1736967562892,0.59284,3373.5,3373.4,0.59283]
[1736967563087,0.59285,3373.4,3373.2,3.80066]
[1736967563397,0.59286,3373.3,3373.2,3.80067]
[1736967563592,0.59286,3373.3,3373.2,3.2078]
[1736967566800,0.4782,3373.5,3373.0,0.4859]
[1736967566801,0.59289,3373.1,3373.0,1.07881]
[1736967568303,0.4782,3373.5,3373.0,0.4859]
[1736967568490,0.59283,3373.5,3373.4,0.59282]
[1736967568796,0.59276,3373.9,3373.8,0.59276]
[1736967568996,0.59273,3374.1,3373.8,3.2078]
[1736967569207,0.59273,3374.1,3374.0,0.59273]
[1736967569801,0.59274,3374.0,3373.9,0.59274]
[1736967570002,0.906,3374.3,3373.8,3.2078]
[1736967570204,0.59275,3373.9,3373.8,3.2078]
[1736967570502,0.59279,3373.7,3373.6,1.204]
[1736967570700,0.59279,3373.7,3373.6,1.7968]
[1736967571595,0.59279,3373.7,3373.6,1.204]
[1736967571800,0.59279,3373.7,3373.6,1.7968]
[1736967572197,0.59279,3373.7,3373.6,1.204]
[1736967573702,0.4693,3373.8,3373.4,3.2078]
[1736967573903,0.59282,3373.5,3373.4,3.2078]
[1736967574706,0.59282,3373.5,3373.4,3.80064]
[1736967575110,0.456,3373.6,3372.8,3.2078]
[1736967575410,0.59289,3373.1,3373.0,1.204]
[1736967576006,0.4834,3373.5,3372.9,0.59291]
[1736967576007,0.59292,3373.0,3372.9,0.59291]
[1736967578405,0.4834,3373.5,3372.8,3.2078]
[1736967578406,0.59293,3372.9,3372.8,3.2078]
[1736967578803,0.59291,3373.1,3372.8,3.2078]
[1736967579109,0.4656,3373.2,3372.8,3.2078]
[1736967579110,0.59292,3373.0,3372.9,0.59291]
[1736967582109,0.59291,3373.1,3373.0,0.59289]
[1736967582513,0.4834,3373.5,3373.0,2.22659822]
[1736967582804,0.59283,3373.5,3373.4,0.59282]
[1736967583505,0.59284,3373.5,3373.4,0.59283]
[1736967584504,0.59282,3373.6,3373.5,0.59281]
[1736967585914,0.59284,3373.4,3373.3,3.2078]
[1736967587310,1.9648,3373.7,3373.0,0.59289]
[1736967587519,0.5929,3373.1,3373.0,0.59289]
[1736967588210,0.46,3373.2,3373.0,0.59289]
[1736967588414,1.05429,3373.1,3373.0,0.59289]
[1736967590310,0.4614,3373.1,3373.0,0.59289]
[1736967590518,0.59281,3373.7,3373.6,0.59279]
[1736967591121,3.2078,3374.9,3373.5,1.204]
[1736967591414,1.03902,3374.7,3374.6,0.59263]
[1736967591719,1.03902,3374.7,3374.3,3.2078]
[1736967591720,0.59263,3374.6,3374.5,0.59263]
[1736967592014,0.59263,3374.6,3374.5,41.39263]
[1736967592216,0.59263,3374.6,3374.5,40.8]
[1736967592410,0.4464,3374.7,3373.9,3.2078]
[1736967592607,0.59273,3374.0,3373.9,5.00454]
[1736967592811,0.59273,3374.0,3373.9,4.4118]
[1736967593124,0.59273,3374.0,3373.9,3.2078]
[1736967593413,0.4464,3374.7,3373.9,3.2078]
[1736967593607,0.59273,3374.0,3373.9,3.2078]
[1736967593807,0.59273,3374.0,3373.9,3.80055]
[1736967594210,0.59273,3374.1,3374.0,0.59272]
[1736967594410,0.59273,3374.0,3373.9,3.80055]
[1736967595320,0.59273,3374.0,3373.9,3.2078]
[1736967596013,1.03783,3374.0,3373.9,3.2078]
[1736967597718,1.03783,3374.0,3373.9,3.80055]
[1736967598022,1.03783,3374.0,3373.9,3.2078]
[1736967598223,1.03783,3374.0,3373.9,3.80055]
[1736967600125,1.03783,3374.0,3373.9,3.2078]
[1736967600326,0.5928,3373.6,3373.5,3.2078]
[1736967600829,0.5928,3373.6,3373.5,3.80062]
[1736967602424,0.5928,3373.6,3373.5,3.2078]
[1736967602627,0.5928,3373.6,3373.5,3.80062]
[1736967604328,0.5928,3373.6,3373.5,3.2078]
[1736967604722,0.5928,3373.6,3373.5,3.80062]
[1736967605023,0.5928,3373.6,3373.5,3.2078]
[1736967605435,0.5928,3373.6,3373.5,3.80062]
[1736967605631,3.2078,3374.6,3373.5,3.2078]
[1736967605838,0.59273,3374.1,3374.0,0.59272]
[1736967606037,0.59273,3374.1,3373.9,3.2078]
[1736967606038,0.59271,3374.2,3374.1,0.59272]
[1736967606238,0.4539,3374.5,3373.9,3.2078]
[1736967606539,0.59267,3374.4,3374.3,0.59266]
[1736967606739,0.59271,3374.3,3374.2,0.59268]
[1736967608239,0.59271,3374.3,3374.0,42.004]
[1736967608240,0.4539,3374.5,3374.0,42.004]
[1736967608438,0.59267,3374.4,3374.3,3.80046]
[1736967608833,0.59267,3374.4,3374.3,3.5954]
[1736967609250,0.59267,3374.4,3374.3,0.3876]
[1736967609439,2.81926822,3374.4,3374.3,0.3876]
[1736967609642,1.33374,3374.2,3373.8,3.2078]
[1736967610049,0.59275,3373.9,3373.8,3.2078]
[1736967610250,0.59287,3373.3,3373.2,3.80067]
[1736967610446,0.59284,3373.4,3373.3,0.59283]
[1736967610843,0.59284,3373.4,3373.3,0.82993]
[1736967611153,0.59277,3373.9,3373.8,0.59275]
[1736967611455,0.59278,3373.8,3373.7,0.59276]
[1736967611643,1.48182,3374.1,3374.0,0.59272]
[1736967611644,0.59273,3374.1,3374.0,0.59272]
[1736967611843,0.59273,3374.1,3374.0,3.2078]
[1736967612041,5.43439822,3374.5,3373.6,3.2078]
[1736967612248,0.59279,3373.7,3373.6,3.2078]
[1736967612643,0.59279,3373.7,3373.6,3.8006]
[1736967613852,0.59279,3373.7,3373.6,3.2078]
[1736967614651,0.59279,3373.7,3373.6,3.8006]
[1736967616653,0.59279,3373.7,3373.6,3.2078]
[1736967617651,0.59279,3373.7,3373.6,3.8006]
[1736967618143,0.59279,3373.7,3373.6,3.2078]
[1736967618350,0.481,3373.9,3373.3,0.8331]
[1736967618549,0.59284,3373.4,3373.3,1.42596]
[1736967618756,0.59282,3373.6,3373.5,0.5928]
[1736967619146,0.59282,3373.5,3373.4,1.07102]
[1736967620350,0.481,3373.9,3373.4,0.4782]
[1736967620746,0.59278,3373.8,3373.7,0.59277]
[1736967621650,0.481,3373.9,3373.4,4.65277822]
[1736967621855,0.59274,3374.0,3373.9,0.59272]
[1736967622159,0.59266,3374.5,3374.3,0.59268]
[1736967622357,0.59266,3374.5,3374.4,0.4695]
[1736967622556,0.59266,3374.5,3374.4,1.06216]
[1736967623561,0.59266,3374.5,3374.4,0.4695]
[1736967624158,2.22659822,3374.5,3374.1,1.204]
[1736967624360,0.5927,3374.2,3374.1,1.204]
[1736967624560,0.59273,3374.0,3373.9,40.8]
[1736967625061,0.59273,3374.0,3373.9,41.39275]
[1736967625364,0.59273,3374.0,3373.9,40.8]
[1736967625566,0.59273,3374.0,3373.9,41.39275]
[1736967625965,1.04632,3374.1,3374.0,0.59273]
[1736967626261,0.4637,3374.4,3374.3,0.59268]
[1736967626452,1.04355,3374.5,3374.4,0.59266]
[1736967627260,0.4637,3374.8,3374.2,3.2078]
[1736967627456,0.59264,3374.6,3374.5,0.59263]
[1736967627867,0.59266,3374.5,3374.4,0.59265]
[1736967628164,0.9103,3374.8,3374.3,0.59267]
[1736967628165,0.59268,3374.4,3374.3,0.59267]
[1736967628762,0.59268,3374.3,3374.2,3.2078]
[1736967628961,1.54138,3374.3,3374.2,3.2078]
[1736967629361,1.54138,3374.3,3374.2,3.8005]
[1736967629963,1.54138,3374.3,3374.2,3.2078]
[1736967631065,1.54138,3374.3,3374.2,3.8005]
[1736967631267,1.54138,3374.3,3374.2,3.2078]
[1736967631466,1.54138,3374.3,3374.2,3.8005]
[1736967632067,1.54138,3374.3,3374.2,3.2078]
[1736967632467,1.54138,3374.3,3374.2,3.8005]
[1736967633169,1.54138,3374.3,3374.2,0.5927]
[1736967633467,0.9487,3374.3,3374.1,0.7091]
[1736967633667,0.5927,3374.2,3374.1,1.30181]
[1736967637767,0.9487,3374.3,3374.2,0.5927]
[1736967637768,1.54139,3374.3,3374.2,0.5927]
[1736967638169,1.54139,3374.3,3374.2,3.8005]
[1736967638571,0.5927,3374.2,3374.1,1.30181]
[1736967638770,0.5927,3374.2,3374.1,2.48731]
[1736967639069,0.9487,3374.3,3374.1,1.8946]
[1736967639273,1.48155,3374.7,3374.2,5.43439822]
[1736967639567,1.48155,3374.7,3374.3,0.59266]
[1736967639568,0.59268,3374.4,3374.3,0.59266]
[1736967640969,0.59268,3374.3,3374.2,6.02708822]
[1736967641367,2.44236,3374.7,3374.2,5.43439822]
[1736967641567,2.44236,3374.7,3374.2,6.02708822]
[1736967641568,0.59268,3374.3,3374.2,6.02708822]
[1736967643473,0.59268,3374.3,3374.2,5.43439822]
[1736967643875,0.59268,3374.3,3374.2,6.02709822]
[1736967646175,0.59268,3374.3,3374.2,5.43439822]
[1736967646365,0.59268,3374.3,3374.2,6.02709822]
[1736967647572,0.59268,3374.3,3374.2,5.43439822]
[1736967647770,0.59268,3374.3,3374.2,6.02709822]
[1736967648574,0.59268,3374.3,3374.2,3.2078]
[1736967649570,0.5927,3374.2,3374.1,4.24549822]
[1736967649769,0.9608,3374.7,3374.1,7.45329822]
[1736967649981,0.9608,3374.7,3374.2,3.89929822]
[1736967650170,0.59268,3374.3,3374.2,4.49198822]
[1736967650373,0.59268,3374.3,3374.2,1.6727]
[1736967650572,0.59268,3374.3,3374.2,1.203]
[1736967651579,0.5927,3374.2,3374.1,6.4297]
[1736967651977,0.5927,3374.2,3374.1,7.02241]
[1736967652583,0.59269,3374.3,3374.2,0.59268]
[1736967652988,0.59269,3374.3,3374.2,1.07228]
[1736967653585,0.59267,3374.4,3374.3,0.59266]
[1736967653891,0.59265,3374.5,3374.4,0.59264]
[1736967654787,0.9608,3374.7,3374.6,0.59263]
[1736967654984,1.55341,3374.7,3374.6,4.98573]
[1736967655776,4.68903,3375.4,3374.6,4.98573]
[1736967655777,3.2078,3375.4,3374.6,4.3931]
[1736967655980,0.59244,3375.7,3375.6,0.59245]
[1736967656290,0.5925,3375.3,3375.2,42.4708]
[1736967656475,1.4367,3375.6,3374.7,3.8004]
[1736967656783,0.59258,3374.9,3374.8,0.59258]
[1736967656985,1.48129,3375.3,3374.8,40.8]
[1736967657178,0.59259,3374.8,3374.7,4.4108]
[1736967658682,1.48129,3375.3,3374.7,5.00341]
[1736967658984,0.59257,3375.0,3374.9,0.59256]
[1736967659387,3.2078,3375.4,3374.9,0.3594]
[1736967659688,0.59254,3375.2,3375.1,0.59253]
[1736967659885,3.2078,3375.4,3375.0,0.4882]
[1736967660184,2.04278,3375.5,3375.4,0.59249]
[1736967660582,0.59245,3375.7,3375.6,0.59244]
[1736967660792,0.59246,3375.6,3375.5,0.59246]
[1736967661089,0.931,3375.8,3375.2,1.48131]
[1736967661291,0.59245,3375.6,3375.5,0.59245]
[1736967661690,0.59247,3375.5,3375.4,1.79547]
[1736967662190,0.931,3375.8,3375.4,1.203]
[1736967662511,0.59247,3375.6,3375.5,0.59246]
[1736967663281,1.05919,3376.0,3375.9,0.5924]
[1736967663983,0.4668,3376.0,3375.7,2.22659822]
[1736967664183,0.59241,3375.9,3375.8,0.5924]
[1736967665989,0.59241,3375.9,3375.7,2.22659822]
[1736967665990,0.4668,3376.0,3375.9,0.5924]
[1736967666186,0.59226,3376.7,3376.6,0.59226]
[1736967666384,0.59226,3376.7,3376.6,3.80007]
[1736967666588,1.07226,3376.7,3376.6,3.80007]
[1736967666791,1.07226,3376.7,3376.6,4.03697]
[1736967667192,0.48,3376.7,3376.6,4.03697]
[1736967667892,0.5922,3377.1,3377.0,0.5922]
[1736967668093,0.59222,3376.9,3376.8,0.59223]
[1736967668288,0.5922,3377.1,3377.0,0.5922]
[1736967668597,0.9154,3377.2,3376.7,0.9162]
[1736967668796,1.05192,3377.0,3376.7,0.9162]
[1736967668989,1.05192,3377.0,3376.9,0.59222]
[1736967669185,0.59222,3377.0,3376.9,1.79522]
[1736967669492,0.5922,3377.1,3377.0,0.59219]
[1736967669690,3.2078,3377.6,3377.0,3.2078]
[1736967669895,0.59217,3377.3,3377.1,0.59219]
[1736967670096,0.59217,3377.3,3377.0,44.0078]
[1736967670295,0.59214,3377.4,3377.3,0.59215]
[1736967670494,0.59215,3377.4,3377.3,0.59214]
[1736967670693,0.59215,3377.4,3377.0,44.0078]
[1736967670694,0.59216,3377.3,3377.2,0.59217]
[1736967671000,3.2078,3377.6,3377.0,44.0078]
[1736967671298,0.59214,3377.4,3377.3,0.59215]
[1736967671500,3.2078,3377.6,3377.0,44.4562]
[1736967671693,0.4585,3377.7,3377.0,44.4562]
[1736967671694,0.4585,3377.7,3377.4,3.2078]
[1736967672096,0.59211,3377.6,3377.5,0.59211]
[1736967672296,0.4585,3377.7,3377.4,3.2078]
[1736967672698,0.59212,3377.5,3377.4,3.2078]
[1736967674202,0.59212,3377.5,3377.4,3.79994]
[1736967674698,0.59212,3377.5,3377.4,4.4108]
[1736967675502,0.59212,3377.5,3377.4,1.203]
[1736967676196,0.59217,3377.2,3377.1,0.59218]
[1736967676408,0.59217,3377.2,3377.1,1.79518]
[1736967677506,3.21209057,3378.0,3377.1,1.203]
[1736967677809,0.59215,3377.4,3377.3,0.59214]
[1736967678007,0.59215,3377.4,3377.3,4.27324]
[1736967678510,0.59215,3377.4,3377.3,4.63284]
[1736967678912,0.59215,3377.4,3377.3,4.0407]
[1736967679205,0.59215,3377.4,3377.3,4.63285]
[1736967681213,0.59215,3377.4,3377.3,5.81715]
[1736967681418,2.43487,3377.8,3377.3,5.225]
[1736967681707,0.59214,3377.4,3377.3,4.7517]
[1736967682107,0.59214,3377.4,3377.3,5.9537]
[1736967682910,0.59214,3377.4,3377.3,4.7517]
[1736967683111,0.59214,3377.4,3377.3,5.9537]
[1736967683511,0.59214,3377.4,3377.3,4.7517]
[1736967683712,0.59214,3377.4,3377.3,1.5439]
[1736967683919,0.59226,3376.7,3376.6,1.4389]
[1736967684212,0.59226,3376.7,3376.6,0.4738]
[1736967685010,0.59226,3376.7,3376.6,1.6584]
[1736967685620,0.59226,3376.7,3376.6,2.2476858]
[1736967685918,0.59222,3377.0,3376.9,0.59221]
[1736967686117,0.59222,3377.0,3376.9,3.80001]
[1736967686616,0.59222,3377.0,3376.9,3.2078]
[1736967686920,0.59226,3376.7,3376.6,1.4215]
[1736967687316,0.59226,3376.7,3376.6,2.01378]
[1736967688117,0.59226,3376.7,3376.6,3.21578]
[1736967688314,0.59225,3376.8,3376.7,0.59224]
[1736967688718,0.9117,3377.2,3376.6,2.6235]
[1736967689315,0.4702,3377.2,3377.1,2.22659822]
[1736967689517,1.06238,3377.2,3377.1,2.22659822]
[1736967689728,0.59221,3377.0,3376.9,3.80001]
[1736967690016,0.59221,3377.0,3376.9,4.03692]
[1736967690221,0.59221,3377.0,3376.9,3.4447]
[1736967690619,0.59221,3377.0,3376.9,0.2369]
[1736967695025,0.59226,3376.7,3376.6,1.1846]
[1736967695235,0.59226,3376.7,3375.6,3.2078]
[1736967695236,0.59243,3375.7,3375.6,3.6561]
[1736967695528,0.59243,3375.7,3375.6,44.4561]
[1736967695827,0.59243,3375.7,3375.6,0.4483]
[1736967696129,0.59247,3375.5,3375.4,2.22659822]
[1736967696323,0.35557,3375.5,3375.4,44.23889822]
[1736967697128,0.35557,3375.5,3375.4,3.43889822]
[1736967697526,0.35557,3375.5,3375.4,1.4493]
[1736967699330,1.48099,3376.0,3375.4,1.4493]
[1736967699331,3.2078,3376.7,3375.4,3.67589822]
[1736967699636,0.59238,3376.0,3375.9,5.43439822]
[1736967700029,0.59238,3376.0,3375.9,44.0078]
[1736967701828,0.59238,3376.0,3375.9,40.8]
[1736967705135,0.59238,3376.0,3375.9,41.3924]
[1736967705637,0.59238,3376.0,3375.9,0.5924]
[1736967705839,0.59242,3375.8,3375.7,5.00223]
[1736967706023,0.59242,3375.8,3375.7,4.4098]
[1736967706840,0.59242,3375.8,3375.7,3.2078]
[1736967709732,0.4713,3376.0,3375.4,1.4493]
[1736967709928,0.59247,3375.5,3375.4,1.4493]
[1736967711055,0.59247,3375.5,3375.4,42.2493]
[1736967712839,0.59247,3375.5,3375.4,1.4493]
[1736967718144,1.04357,3375.5,3375.4,1.4493]
[1736967719130,0.59247,3375.5,3375.4,1.4493]
[1736967721436,0.59247,3375.5,3375.4,0.78948]
[1736967723636,0.59247,3375.5,3375.4,1.38197]
[1736967723938,0.59247,3375.5,3375.4,42.18197]
[1736967724340,0.59247,3375.5,3375.4,41.58948]
[1736967724643,0.59247,3375.5,3375.4,42.18197]
[1736967724839,0.59247,3375.5,3375.4,1.38197]
[1736967725541,0.59245,3375.7,3375.4,0.78948]
[1736967725741,0.59245,3375.7,3375.6,0.59245]
[1736967726440,3.2078,3376.2,3375.5,3.2078]
[1736967726651,0.59236,3376.2,3376.1,0.59235]
[1736967726946,0.59232,3376.4,3376.3,0.59232]
[1736967727136,1.48035,3377.4,3376.3,5.43439822]
[1736967727340,0.4789,3377.3,3376.7,5.43439822]
[1736967727538,2.22659822,3377.1,3376.7,4.4098]
[1736967727838,0.59224,3376.8,3376.7,1.202]
[1736967728242,0.59229,3376.5,3376.4,0.4779]
[1736967729739,0.59229,3376.5,3376.4,0.5439]
[1736967730452,0.59227,3376.7,3376.6,0.59227]
[1736967730643,0.4569,3377.1,3376.5,0.4567]
[1736967730644,0.59228,3376.6,3376.5,0.4567]
[1736967730849,0.59228,3376.6,3376.5,1.04899]
[1736967731047,0.59227,3376.7,3376.5,0.4567]
[1736967731245,0.59227,3376.7,3376.5,1.04899]
[1736967731549,0.59228,3376.6,3376.5,1.04899]
[1736967732152,1.95929,3377.3,3376.5,0.4567]
[1736967732153,0.4789,3377.3,3376.5,0.4567]
[1736967732350,0.59217,3377.3,3377.1,3.79998]
[1736967732656,0.59217,3377.2,3377.1,3.79998]
[1736967733055,0.59216,3377.3,3377.1,3.2078]
[1736967733254,3.6972,3377.8,3377.1,3.2078]
[1736967733458,0.59217,3377.2,3377.1,3.2078]
[1736967733851,1.48022,3377.7,3377.1,3.2078]
[1736967734052,0.59217,3377.2,3377.1,3.2078]
[1736967735952,0.59224,3376.8,3376.7,3.2078]
[1736967736547,0.924,3377.1,3376.6,1.202]
[1736967736753,0.59226,3376.7,3376.6,1.202]
[1736967736950,0.59229,3376.5,3376.4,0.066]
[1736967738148,0.59223,3376.9,3376.8,0.59223]
[1736967738361,0.59223,3376.9,3376.8,1.202]
[1736967738654,0.9261,3377.7,3376.8,3.2078]
[1736967738655,1.48042,3377.3,3376.8,3.2078]
[1736967738854,0.59222,3376.9,3376.8,3.2078]
[1736967739258,0.4491,3377.1,3376.7,1.202]
[1736967739456,0.938,3377.1,3376.4,5.96849822]
[1736967739655,0.59229,3376.6,3376.5,1.79429]
[1736967740662,0.59229,3376.6,3376.5,1.202]
[1736967740954,1.48059,3376.9,3376.4,5.50039822]
[1736967741159,0.59229,3376.5,3376.4,3.2738]
[1736967741960,0.59229,3376.5,3376.4,0.066]
[1736967742956,0.59229,3376.5,3376.4,3.86611]
[1736967743152,0.59228,3376.6,3376.5,0.59227]
[1736967744555,0.938,3377.1,3376.4,6.70239822]
[1736967744763,2.22659822,3377.7,3376.4,4.4758]
[1736967744959,0.59229,3376.6,3376.5,0.59229]
[1736967745161,0.59228,3376.6,3376.5,41.39229]
[1736967745660,0.59228,3376.6,3376.5,42.59429]
[1736967746754,0.59228,3376.7,3376.6,0.59224]
[1736967747154,1.48043,3377.2,3376.5,42.002]
[1736967747365,0.59226,3376.8,3376.7,0.59223]
[1736967748963,0.9379,3377.3,3376.7,2.22659822]
[1736967749268,2.23088879,3378.0,3377.1,0.59217]
[1736967749269,0.59219,3377.2,3377.1,0.59217]
[1736967751460,0.59219,3377.2,3377.1,1.77657]
[1736967752370,0.59219,3377.2,3377.1,1.1844]
[1736967752570,0.59219,3377.2,3377.1,1.2115]
[1736967755470,0.59219,3377.2,3377.1,1.4483]
[1736967756872,0.59219,3377.2,3377.1,1.5034]
[1736967766673,1.03479,3377.2,3377.1,1.5034]
[1736967771884,0.59219,3377.2,3377.1,1.5034]
[1736967772085,1.48769,3377.2,3377.1,1.5034]
[1736967774084,0.59219,3377.2,3377.1,4.7112]
[1736967774287,0.59211,3377.6,3377.4,0.59212]
[1736967774584,3.2078,3378.4,3377.5,6.63639822]
[1736967774791,0.59203,3378.1,3377.8,2.81866822]
[1736967775103,0.59203,3378.1,3377.9,0.59205]
[1736967775384,0.59633057,3378.0,3377.8,0.59206]
[1736967775606,0.59633057,3378.0,3377.7,0.59207]
[1736967775892,0.59633057,3378.0,3377.8,0.2368]
[1736967776285,0.59633057,3378.0,3377.8,0.87315]